Cogmind - Beta 16 @@@ ROGUE MODE // 2025.12.17 @ 11:46:27 Player: Red Box Result: Destroyed by P-60 Hacker with Shock Rifle Performance ------------- Evolutions (0) 0 Regions Visited (3) 600 Robots Destroyed (36) 180 Value Destroyed (774) 774 Prototype IDs (37) 740 Alien Tech Used (0) 0 Bonus (205) 205 TOTAL SCORE: 2499 Bonus ------- Follower Combat Kills 25 Aligned with FarCom 300 Friendly Fire -120 Cogmind --------- Core Integrity 0/250 Matter 261/300 Energy 237/250 System Corruption 0% Temperature Cool (0) Movement Rolling (110) Ox2 Location -10/Exiles Parts ------- > --- POWER (1) -------- Ion Engine > --- PROPULSION (2) --- Improved Treads Wheel > --- UTILITY (2) ------ High-capacity Storage Unit Gravity Neutralizer > --- WEAPON (2) ------- Field Laser Mini Grenade Launcher > --- INVENTORY (20) --- Reinforced Fission Core Titanium Leg Advanced Myomer Leg Advanced Myomer Leg Compact Wheel Experimental Heat Sink Superbattery (1447) Compact Matter Pod (150) 0b10 Alert Chip 8R-AWN's Armor/EX Improved Trap Extractor (2/6 Explosive) 8R-AWN's Boregun Mini Grenade Launcher Datajack Longsword +1 EMP Trap Peak State ------------ > --- POWER ------------ Ion Engine > --- PROPULSION ------- Improved Treads Wheel > --- UTILITY ---------- High-capacity Storage Unit Gravity Neutralizer > --- WEAPON ----------- Field Laser Mini Grenade Launcher > --- INVENTORY -------- Reinforced Fission Core Titanium Leg Advanced Myomer Leg Advanced Myomer Leg Compact Wheel Experimental Heat Sink Superbattery Compact Matter Pod 0b10 Alert Chip 8R-AWN's Armor/EX Improved Trap Extractor 8R-AWN's Boregun Mini Grenade Launcher Datajack Longsword +1 EMP Trap [Rating: 26] Favorites ----------- Power Ion Engine Engine Ion Engine Propulsion Aluminum Leg Treads Improved Treads Leg Aluminum Leg Wheel Wheel Utility High-capacity Storage Unit Device Heat Sink Storage High-capacity Storage Unit Weapon EM Pulse Gun Energy Gun EM Pulse Gun Energy Cannon Ion Cannon Ballistic Gun Light Assault Rifle Launcher Mini Grenade Launcher Special Weapon Mining Laser Slashing Weapon Longsword +1 Special Melee Weapon Datajack Build | -11 -10 -10 -10 ------- Run | Yrd Mat Min Exi Slots Evolved . | . . . . Power . | . . . . Propulsion . | . . . . Utility . | . . . . Weapon . | . . . . Parts Attached 35 | 7 13 7 8 Power 4 | 1 2 . 1 Engine 4 | 1 2 . 1 Core . | . . . . Reactor . | . . . . Propulsion 9 | 2 3 1 3 Treads 5 | . 1 1 3 Leg 3 | 2 1 . . Wheel 1 | . 1 . . Hover . | . . . . Flight . | . . . . Utility 9 | 2 3 3 1 Device 5 | 1 1 2 1 Storage 4 | 1 2 1 . Processor . | . . . . Hackware . | . . . . Protection . | . . . . Artifact . | . . . . Weapon 13 | 2 5 3 3 Energy Gun 3 | 2 . . 1 Energy Cannon 2 | . . 2 . Ballistic Gun 2 | . 1 1 . Ballistic Cannon . | . . . . Launcher 2 | . 2 . . Special Weapon 1 | . 1 . . Impact Weapon . | . . . . Slashing Weapon 2 | . . . 2 Piercing Weapon . | . . . . Special Melee Weapon 1 | . 1 . . Unidentified Prototypes . | . . . . Parts Lost 8 | . 1 1 6 Power 1 | . . . 1 Propulsion 3 | . . . 3 Utility 2 | . 1 . 1 Weapon 2 | . . 1 1 Highest Loss Streak 6 | . 1 1 6 To Critical Strikes 3 | . . . 3 Average Backups 13 | 3 10 18 15 Power 1 | . 1 1 2 Propulsion 4 | 2 4 5 4 Utility 3 | . 1 4 3 Weapon 4 | . 3 6 4 Tool/Special . | . . . . Unused Backups 26 | . 3 4 19 Power 5 | . . 1 4 Propulsion 8 | . 3 1 4 Utility 11 | . . 2 9 Weapon 2 | . . . 2 Tool/Special . | . . . . Average Slot Usage (%) 97 | . 99 99 91 Engine 13 | . 14 14 13 Treads 8 | . 2 14 14 Leg 10 | . 23 . . Wheel 8 | . 2 14 13 Device 13 | . 13 14 13 Storage 14 | . 14 14 14 Energy Gun 11 | . 22 3 1 Energy Cannon 4 | . . 9 5 Ballistic Gun 5 | . 4 11 . Launcher 1 | . . . 5 Special Melee Weapon 2 | . . 2 6 Peak Build Rating 26 | 9 11 18 26 Average Rating 11 | 5 8 13 15 On Entrance 9 | . 9 9 18 Avg Prop Armor Cover (%) 13 | . 12 12 15 Naked Turns . | . . . . Heaviest Build 58 | 15 30 58 58 Greatest Support 46 | 20 20 10 46 Greatest Overweight (x) 5 | 4 2 5 5 Average Overweight (x) 2 | . 1 4 4 Largest Inventory Capacity 20 | 8 15 20 20 Average Capacity 16 | 7 13 19 20 Most Carried 20 | 8 15 20 20 Average Carried 14 | 3 10 19 16 Final Capacity 20 | 8 15 20 20 Final Carried 20 | 8 15 20 18 Class Distribution -------------------- 93% | Mutant 6% | Trapper-Mutant Dominant Class ---------------- Mutant | -10/Materials Mutant | -10/Mines Mutant | -10/Exiles Resources | -11 -10 -10 -10 ----------- Run | Yrd Mat Min Exi Matter Collected 1226 | 270 460 365 131 Remotely . | . . . . Salvage Created 1002 | 105 570 144 183 Parts 77 | 6 46 15 10 Haulers Intercepted 2 | . 2 . . Recyclers Shooed 3 | . 3 . . Parts Field Recycled . | . . . . Retrieved Matter . | . . . . Parts Self-Destructed . | . . . . Prevented . | . . . . Parts Restored . | . . . . Kills | -11 -10 -10 -10 ------- Run | Yrd Mat Min Exi Combat Hostiles Destroyed 29 | . 15 9 5 Melee 3 | . . . 3 Guns 9 | . 6 1 2 Cannons 1 | . . 1 . AOE 16 | . 9 7 . Classes Destroyed 9 | 2 6 . 1 Worker 1 | . 1 . . Builder 1 | . 1 . . Tunneler 1 | 1 . . . Hauler 2 | . 2 . . Recycler 1 | 1 . . . Watcher 3 | . 3 . . Swarmer 11 | . 5 6 . Grunt 15 | . 10 3 2 Assembled 2 | . . . 2 Best Kill Streak 4 | 1 4 3 3 Combat Bots Only 3 | . 3 3 3 Max Kills in Single Turn 4 | 1 4 3 1 Gunslinging . | . . . . Exploded 3 | . 3 3 . Melee 1 | . . . 1 Uniques/NPCs Destroyed 1 | . . . 1 8R-AWN (-10/Exiles) Combat | -11 -10 -10 -10 -------- Run | Yrd Mat Min Exi Hostile Shots Fired 137 | . 41 12 84 Missed 41 | . 11 2 28 Hits 96 | . 30 10 56 Projectile 96 | . 30 10 56 Critical Strikes 21 | . . . 21 Damage Taken 1462 | . 351 113 998 Core 250 | . 20 15 215 Absorbed by Shields . | . . . . Core Remaining (%) 100 | 100 . . . Volleys Fired 54 | 3 38 8 5 Largest 2 | 2 2 2 2 Hottest 135 | 80 100 135 93 Shots Fired 100 | 6 72 14 8 Gun 77 | 6 62 4 5 Cannon 6 | . . 6 . Launcher 14 | . 7 4 3 Special 3 | . 3 . . Kinetic 9 | . 5 4 . Thermal 14 | . 3 6 5 Explosive 14 | . 7 4 3 Electromagnetic 63 | 6 57 . . Robot Hit Streak 5 | 5 5 5 1 Robot Miss Streak 5 | . 5 2 3 Penetration Max . | . . . . Secondary Targets 1 | . 1 . . Max Gunslinging Chain 1 | . 1 . . Shots Hit Robots 69 | 5 29 6 29 Core Hits 56 | 3 33 12 8 Critical Kills . | . . . . Critical Parts Destroyed . | . . . . Critical Strikes 1 | . . . 1 Sever 1 | . . . 1 Melee Attacks 31 | . . . 31 Impact . | . . . . Slashing 25 | . . . 25 Piercing . | . . . . Sneak Attacks 6 | . . . 6 Combat Hostiles . | . . . . Follow-up Attacks 1 | . . . 1 Damage Inflicted 2852 | 62 1144 505 1141 Guns 546 | 62 399 16 69 Cannons 48 | . . 48 . Explosions 1275 | . 743 441 91 Melee 981 | . . . 981 Ramming 2 | . 2 . . Kinetic 40 | . 24 16 . Thermal 183 | . 66 48 69 Explosive 1209 | . 677 441 91 Electromagnetic 437 | 62 375 . . Impact . | . . . . Slashing 981 | . . . 981 Piercing . | . . . . Highest Corruption . | . . . . Average Corruption . | . . . . Corruption Purged . | . . . . Corruption Blocked . | . . . . Overload Shots . | . . . . Overflow Damage 94 | . 17 9 68 Projectiles . | . . . . Explosions 40 | . 17 9 14 Melee 54 | . . . 54 Knockbacks . | . . . . Impact . | . . . . Kinetic . | . . . . Secondary . | . . . . Self-Inflicted Damage 88 | . 42 23 23 Shots 3 | . 1 1 1 Rammed 1 | . 1 . . Targets Rammed 1 | . 1 . . Kicked . | . . . . Crushed . | . . . . Highest Temperature 105 | 36 72 39 105 Average Temperature 27 | 18 26 17 45 Received Heat Transfer 129 | . 93 30 6 Siege Activations . | . . . . Martial Activations . | . . . . Shielding Activations . | . . . . Robots Disrupted . | . . . . Combat Hostiles . | . . . . Robots Corrupted 1 | . 1 . . Combat Hostiles . | . . . . Parts Fried 2 | . 2 . . Impact Corruptions . | . . . . Robots Melted . | . . . . Combat Hostiles . | . . . . Parts Melted . | . . . . Heat Transferred 322 | . 100 74 148 Parts Sabotaged . | . . . . Parts Stolen . | . . . . Parts Stripped . | . . . . Power Chain Reactions 1 | . 1 . . Alert | -11 -10 -10 -10 ------- Run | Yrd Mat Min Exi Maximum Alert Level 1 | . 1 . . Low Security (%) 99 | 100 98 100 . Level 1 . | . 1 . . Level 2 . | . . . . Level 3 . | . . . . Level 4 . | . . . . Level 5 . | . . . . High Security . | . . . . Max Security . | . . . . Peak Influence 212 | 5 212 185 . Initial 82 | . . 82 . Average 81 | . 95 66 . Influence Increases 989 | 10 622 317 40 Destroy 0b10 Robot/C 540 | . 300 200 40 Destroy 0b10 Robot/NC 45 | 10 35 . . Destroy Leader 110 | . 70 40 . Allied During Kill 8 | . . 8 . Successful Hack 55 | . 49 6 . Select Force Hacks 60 | . 60 . . Disable Machine 45 | . 15 30 . Destroy Structure 96 | . 63 33 . Lose Combat Pursuer 30 | . 30 . . Influence Decreases 957 | 10 410 458 79 Entered New Map 201 | . . 130 71 Time Decay 736 | 10 400 318 8 Lost Part 20 | . 10 10 . Squads Dispatched 5 | . 4 1 . Investigation 5 | . 4 1 . Extermination . | . . . . Reinforcement . | . . . . Assault . | . . . . Garrison . | . . . . Intercept . | . . . . Searches Triggered . | . . . . Construction Impeded . | . . . . Haulers Reinforced . | . . . . Active Scanning Responses . | . . . . Cargo Convoy Interrupts . | . . . . Stealth | -11 -10 -10 -10 --------- Run | Yrd Mat Min Exi Distress Signals . | . . . . Communications Jammed . | . . . . Distress Signals . | . . . . Times Spotted 43 | . 24 8 11 Peak Tracking Total 7 | . 4 3 7 Tactical Retreats 2 | . 2 . . Traps | -11 -10 -10 -10 ------- Run | Yrd Mat Min Exi Traps Triggered . | . . . . Indirectly . | . . . . Trap Hack Attempts 30 | . 2 28 . Triggered . | . . . . Disarmed . | . . . . Reprogrammed 5 | . 1 4 . Reused 1 | . . . 1 Traps Extracted 4 | . . 4 . Installed 1 | . . . 1 Triggered . | . . . . Most Traps Carried 4 | . . 4 4 Machines | -11 -10 -10 -10 ---------- Run | Yrd Mat Min Exi Machines Disabled 4 | . 2 2 . Max in Single Turn 1 | . 1 1 . Machines Repaired . | . . . . Machines Dismantled . | . . . . Machines Sabotaged . | . . . . Overloaded Fab Kills . | . . . . Hacking | -11 -10 -10 -10 --------- Run | Yrd Mat Min Exi Machines Accessed 16 | . 10 4 2 Terminals 9 | . 7 2 . Fabricators . | . . . . Repair Stations 1 | . 1 . . Recycling Units 2 | . 2 . . Scanalyzers . | . . . . Garrison Access . | . . . . Total Hacks 46 | . 34 9 3 Successful 23 | . 16 4 3 Failed 23 | . 18 5 . Catastrophic 3 | . 3 . . Database Lockouts . | . . . . Manual 35 | . 27 7 1 Terminals 29 | . 22 7 . Fabricators . | . . . . Repair Stations 2 | . 2 . . Recycling Units 10 | . 10 . . Scanalyzers . | . . . . Garrison Access . | . . . . Terminal Hacks 10 | . 3 4 3 Record 2 | . . . 2 Robot Analysis 4 | . 2 2 . Open Door 2 | . . 2 . Terminal Index 1 | . 1 . . Proto ID Catalog 1 | . . . 1 Fabricator Hacks . | . . . . Repair Station Hacks 1 | . 1 . . Scan Component 1 | . 1 . . Recycling Unit Hacks 2 | . 2 . . Retrieve Components 2 | . 2 . . Scanalyzer . | . . . . Garrison Access Hacks . | . . . . Unauthorized Hacks 10 | . 10 . . Terminals 6 | . 6 . . Operators 1 | . 1 . . Skim 5 | . 5 . . Fabricators . | . . . . Repair Stations . | . . . . Recycling Units 4 | . 4 . . Reject 1 | . 1 . . Mask 1 | . 1 . . Tunnel 2 | . 2 . . Scanalyzers . | . . . . Garrison Access . | . . . . Data Cores Recovered . | . . . . Used . | . . . . Hacking Detections 12 | . 10 2 . Full Trace Events 2 | . 2 . . Feedback Events . | . . . . Feedback Blocked . | . . . . Robot Schematics Acquired . | . . . . Robots Built . | . . . . Authchips . | . . . . Time . | . . . . Total Robot Build Rating . | . . . . Part Schematics Acquired . | . . . . Parts Built . | . . . . Authchips . | . . . . Time . | . . . . Total Part Build Rating . | . . . . Part Studies Acquired . | . . . . Parts Repaired . | . . . . Time . | . . . . Parts Recycled . | . . . . Recycled Matter . | . . . . Retrieved Matter . | . . . . Retrieved Components 10 | . 10 . . Parts Scanalyzed . | . . . . Part Schematics Acquired . | . . . . Parts Damaged . | . . . . Bothacking | -11 -10 -10 -10 ------------ Run | Yrd Mat Min Exi Used RIF Installer . | . . . . Robots Hacked 4 | . . . 4 Non-combat 3 | . . . 3 Combat 1 | . . . 1 Robot Hacks Applied 4 | . . . 4 parse_system 4 | . . . 4 Relay Couplers Released . | . . . . Fabnet Peak Effective % . | . . . . Robots Rewired . | . . . . Allies Hacked . | . . . . Hacks Repelled . | . . . . Allies | -11 -10 -10 -10 -------- Run | Yrd Mat Min Exi Total Allies 3 | . . 3 . Largest Group 3 | . . 3 3 Highest-Rated Group 40 | . . 40 40 Highest-Rated Ally 16 | . . 16 16 Total Orders 3 | . . 2 1 STAY 2 | . . 1 1 FOLLOW 1 | . . 1 . Ally Attacks 10 | . . 10 . Total Damage 112 | . . 112 . Kills 1 | . . 1 . Allies Corrupted . | . . . . Allies Melted . | . . . . Intel | -11 -10 -10 -10 ------- Run | Yrd Mat Min Exi Active Infowar (turns) 958 | 32 926 . . Terrain 958 | 32 926 . . Robot Analysis Total 4 | . 2 2 . Derelict Logs Recovered 1 | . . 1 . Drone Launches . | . . . . Drone Recoveries . | . . . . Exploration | -11 -10 -10 -10 ------------- Run | Yrd Mat Min Exi Turns Passed 4947 | 119 2177 1332 1319 Spaces Moved 2753 | 52 1167 728 806 Core 14 | 14 . . . Treads 3 | . . . 3 Legs 921 | 38 883 . . Wheels 1815 | . 284 728 803 Hover . | . . . . Flight . | . . . . Fastest Speed 50 | 50 110 110 110 Average Speed 148 | 142 153 144 146 Slowest Speed 250 | 250 190 155 240 Overloaded Moves . | . . . . Propulsion Burnouts . | . . . . Robots Hopped . | . . . . Potential Cave-ins . | . . . . Cave-ins Triggered . | . . . . Exploration Rate (%) 68 | 6 100 98 71 Regions Visited 3 Branch Regions 2 Pre-discovered Areas 5 | . 3 1 1 Known Exits Taken . | . . . . Unknown Exits Taken 3 | 1 1 1 . Scrap Searched 1 | . . 1 . Spaces Dug 3 | . 3 . . Terrain Destroyed 115 | . 69 38 8 Melee . | . . . . Projectile 5 | . 3 2 . AOE 110 | . 66 36 8 Terrain Rammed . | . . . . Walls Destroyed . | . . . . Machines Disabled . | . . . . Actions | -11 -10 -10 -10 --------- Run | Yrd Mat Min Exi Total 3459 | 87 1467 994 911 Wait 439 | 18 207 189 25 Move 2750 | 51 1166 727 806 Hop . | . . . . Pick Up 54 | 8 16 16 14 Fast Attach 8 | 7 1 . . Attach 14 | . 2 3 9 Detach 1 | . . . 1 Swap 42 | . 22 12 8 Drop 35 | . 12 11 12 Fire 54 | 3 38 8 5 Melee 30 | . . . 30 Ram 1 | . 1 . . Kick . | . . . . Crush . | . . . . Escape Stasis . | . . . . Rewire . | . . . . Trap 31 | . 2 28 1 Miscellaneous . | . . . . Route ------- -11/Scrapyard -10/Materials (discovered 5 exits: *Mat x3 / *Min / [*Sub]) -10/Mines (discovered 3 exits: *Mat x2 / *Exi) -10/Exiles (discovered 1 exit: [*Min]) History --------- Turn | Location | Event 31 | -11/Scrapyard | Discovered new exit (range 14) 120 | -11/Scrapyard | Entered Materials 312 | -10/Materials | Build established: Mutant 496 | -10/Materials | Discovered new exit (range 9) 500 | -10/Materials | Discovered new exit (range 16) 1227 | -10/Materials | Learned Storage emergency access door positions 1267 | -10/Materials | Identified exit to Materials 1319 | -10/Materials | Learned location of 1 exit from Recycling 1350 | -10/Materials | Learned Materials stockpile data 1444 | -10/Materials | Learned Storage garrison access intel 2297 | -10/Materials | Entered Mines 2303 | -10/Mines | Learned location of Zion (-7) 2317 | -10/Mines | Met a Derelict who couldn't figure out how to use a Trap Extractor 2578 | -10/Mines | Discovered exit to Materials (range 7) 2933 | -10/Mines | Deemed a non-threat by the Exiles lab entrance 3175 | -10/Mines | Met a Derelict shopkeep closing up shop 3299 | -10/Mines | Assisted by bots powering up and referring to "LRC-V3" 3361 | -10/Mines | Discovered exit to Materials (range 5) 3611 | -10/Mines | Discovered new exit (range 5) 3629 | -10/Mines | Entered Exiles 3629 | -10/Exiles | Accompanied by 3 allies 3671 | -10/Exiles | Met 8R-AWN 3693 | -10/Exiles | Met EX-HEX 3854 | -10/Exiles | Met EX-DEC 3975 | -10/Exiles | Discovered new exit (range 14) 4316 | -10/Exiles | Met EX-BIN 4352 | -10/Exiles | Aligned with FarCom system 4353 | -10/Exiles | Given EX-Vault access code 4545 | -10/Exiles | Build established: Trapper-Mutant 4548 | -10/Exiles | Warned about trapping Exiles lab 4687 | -10/Exiles | Opened EX-Vault 4698 | -10/Exiles | Found Longsword +1 4703 | -10/Exiles | Found Superbattery 4707 | -10/Exiles | Found 0b10 Alert Chip 4735 | -10/Exiles | Warned to stay clear of 0b10 Research branches 4747 | -10/Exiles | Exiles lab attacked by MAIN.C 4779 | -10/Exiles | Attacked by the Exiles 4843 | -10/Exiles | Core integrity fell below 50% 4888 | -10/Exiles | Destroyed 8R-AWN 4895 | -10/Exiles | Build established: Mutant 4908 | -10/Exiles | Lost 6 parts (1p3n1u1w) 4917 | -10/Exiles | Found 8R-AWN's Boregun 4920 | -10/Exiles | Found 8R-AWN's Armor/EX 4938 | -10/Exiles | Core integrity fell below 20% 4948 | -10/Exiles | Destroyed by P-60 Hacker with Shock Rifle Last Messages --------------- 04881_ Penetrated by HV Slug. 04881_ HV Slug penetrates Earth. 04887_ Penetrated by HV Slug. 04887_ HV Slug penetrates Wall. 04887_ Penetrated by HV Slug. 04887_ HV Slug penetrates Wall. 04888_ 8R-AWN destroyed. 04890_ Acquired Adv. Myomer Leg. 04895_ Acquired Rnf. Fission Core. 04898_ Acquired Adv. Myomer Leg. 04902_ G-34 Mercenary destroyed. 04905_ Destroyed Heat Sink. 04908_ G-34 Mercenary destroyed. 04914_ Acquired Exp. Heat Sink. 04915_ Acquired 105 matter. 04917_ Acquired 8R-AWN's Boregun. 04920_ Acquired 8R-AWN's Armor/EX. 04922_ Acquired Gravity Neutralizer. 04925_ Acquired Datajack. 04937_ Penetrated by Slug. Map ----- +----------------------------------------------------+ | ???????????????????????# #???????????????????? | | ???????????????????????# #???###?????????????? | | ???????????????????????# #??"""""????????????? | | ???????????????????????# ## """????????????? | | ???????????????????????# X""????????????? | | ???????????????????????# ## """????????????? | | ?????????????????####??# #??"""""????????????? | | ????????????????""""""?# #???#?#?????????????? | | ????????????????"""" ## #???????????????????? | | ???????????????#""X" #???????????????????? | | ???????????????#" #???????????????????? | | ???????????????#" ## #???????????????????? | | ???????????????#""""""?# #?#########?????????? | | ???????????????##"###??# #?#"""""""#?????????? | | ???????????????????????# #?#"""""""#?????????? | | ???????????????????????# #?#"""""""#?????????? | | ??????????????????????## ###"" """"#?????????? | | ??????????????????????#" """"#?????????? | | ??????????????????????#" """#?????????? | | ??????????????????????#" """#?????????? | | ??????????????????????#" """#?????????? | | ?????????######???????#" """#?????????? | | ???????? """#???????#" " "## ???????? | | ???????#"" """#??????#"# """"""???????? | | ???????#"" #????????# """#####?????? | | ???????#"" #????????#"@ " """ #????? | | ???????#"" "#????????#" # ""??????? | | ???????? ""?????????# ""#?????????? | | ?????????" "????????# #;;;;##?????????? | | ?????????# #????????# # ## #?????????? | | ####???### ###?###### # # #?# #????????? | | """#####X# #"###""""" == ##### #??##????????? | | """""" " %* ##?# ###########???? | | "" """ = ###"#"""""""""##??? | | " " " """ """"##?? | | h "" " #?? | | " """#?? | | p " "#?? | | # h " "##? | | ##" g ""## | | ?#""" """""" """ | | ##" ######""" " | | #"" ""##????#####""" | | #""" """##?????????##""" | | """ """##???????????#"""" | | """ ""#???????????##"" | | "" ########??####"""" | | """ ## ####""" | | "" """" | | #"" | +----------------------------------------------------+ Best States ------------- Heat Dissipation 39 Energy Generation 10 Energy Capacity 250 Matter Stores 300 Matter Capacity 300 Sight Range 16 Terrain Scan Range 16 Terrain Scan Density 10 Evasion (%) 55 Recoil Reduction 2 Trap Extractor Capacity 6 Item Schematics ----------------- None Robot Schematics ------------------ None Fabricated ------------ Nothing Repaired ---------- Nothing Studied --------- None Alien Tech Used ----------------- None Achievements -------------- None Challenges ------------ None Game ------ Seed CoilChainInverter Manual? 0 Play Time 00:28:58 Cumulative 865.5 hours Start 2025.12.17 @ 11:17:27 End 2025.12.17 @ 11:46:27 Sessions 1 Manual Loads 0 Difficulty Rogue Special Mode None Game No. 555 Rogue 555 Adventurer 0 Explorer 0 Win Type - Total 1 Types 1/0/0/0/0/0/0/0/0/0 Lore% 79 Gallery% 72 Achievement% 52 Wizard Run 0 Options --------- Layout 1 ASCII 0 Keyboard 0 Movement Mouse Keybinds 0 Fullscreen 1 Font 20/SmallcapsGlow Map View 54x42 Zoom Use 0% Tactical HUD 1 Map Filters NONE Filters NONE Steam 1 RUN: 9f38ba29-f484-4762-a9c3-0be730a18d64